Workbook

Sheet 등록금
B1: 2021 등록금
E3: 이학 | F3: 공학
D4: 전공 | E4: 에너지물리 에너지화학 | F4: 화공재료환경
D5: 수업료 | E5: 5380000 | F5: 6225000
B8: 에너지시스템 장학내용(공학과정)
B10: 과정 | C10: 장학이름 | D10: 배정비율 | E10: 공학
E11: 장학내용 | F11: 감면금액 | G11: BK지원금 | H11: 교비지원금 | I11: 합계
B12: 석사 | C12: 에너지특별장학S | D12: 0.3 | E12: 등록금 25% 감면 +BK지원금(70만원) | F12: =F5*0.25 -> 1556250 | G12: 4200000 | H12: 0 | I12: =F12+G12+H12 -> 5756250
C13: 에너지우수장학A | D13: 0.4 | E13: 등록금 10% 감면 +BK지원금(70만원) | F13: =F5*0.1 -> 622500 | G13: 4200000 | H13: 0 | I13: 4822500
C14: 에너지연구장학B | D14: 0.3 | E14: 등록금 5% 감면 +교비지원금(60만원) | F14: =F5*0.05 -> 311250 | G14: 0 | H14: 3600000 | I14: 3911250
B15: 박사 | C15: 에너지BK장학S | D15: 0.2 | E15: 등록금 25% 감면 +BK지원금(130만원) +교비지원금(20만원) | F15: =F5*0.25 -> 1556250 | G15: 7800000 | H15: 1200000 | I15: 10556250
C16: 에너지BK장학A | D16: 0.5 | E16: 등록금 20% 감면 +BK지원금(130만원) | F16: =F5*0.2 -> 1245000 | G16: 7800000 | H16: 0 | I16: 9045000
C17: 에너지아주장학B | D17: 0.3 | E17: 등록금 45% 감면 +교비지원금(80만원) | F17: =F5*0.45 -> 2801250 | G17: 0 | H17: 4800000 | I17: 7601250
B18: 박사 수료 | C18: 에너지BK장학S | D18: 0.2 | E18: BK지원금(100만원) +교비지원금(20만원) | G18: 6000000 | H18: 1200000 | I18: 7200000
C19: 에너지BK장학A | D19: 0.5 | E19: BK지원금(100만원) | G19: 6000000 | I19: 6000000
C20: 에너지아주장학B | D20: 0.3 | E20: 교비지원금(80만원) | H20: 4800000 | I20: 4800000
B22: 에너지시스템 장학내용(이학과정)
B24: 과정 | C24: 장학이름 | D24: 배정비율 | E24: 이학
E25: 장학내용 | F25: 감면금액 | G25: BK지원금 | H25: 교비지원금 | I25: 합계
B26: 석사 | C26: 에너지특별장학S | D26: 0.3 | E26: 등록금 25% 감면 +BK지원금(70만원) | F26: =E5*0.25 -> 1345000 | G26: 4200000 | H26: 0 | I26: =F26+G26+H26 -> 5545000
C27: 에너지우수장학A | D27: 0.4 | E27: 등록금 10% 감면 +BK지원금(70만원) | F27: =E5*0.1 -> 538000 | G27: 4200000 | H27: 0 | I27: 4738000
C28: 에너지연구장학B | D28: 0.3 | E28: 교비지원금(60만원) | F28: =F5*0 -> 0 | G28: 0 | H28: 3600000 | I28: 3600000
B29: 박사 | C29: 에너지BK장학S | D29: 0.2 | E29: 등록금 25% 감면 +BK지원금(130만원) +교비지원금(20만원) | F29: =E5*0.25 -> 1345000 | G29: 7800000 | H29: 1200000 | I29: 10345000
C30: 에너지BK장학A | D30: 0.5 | E30: 등록금 20% 감면 +BK지원금(130만원) | F30: =E5*0.2 -> 1076000 | G30: 7800000 | H30: 0 | I30: 8876000
C31: 에너지아주장학B | D31: 0.3 | E31: 등록금 45% 감면 +교비지원금(80만원) | F31: =E5*0.45 -> 2421000 | G31: 0 | H31: 4800000 | I31: 7221000
B32: 박사 수료 | C32: 에너지BK장학S | D32: 0.2 | E32: BK지원금(100만원) +교비지원금(20만원) | G32: 6000000 | H32: 1200000 | I32: 7200000
C33: 에너지BK장학A | D33: 0.5 | E33: BK지원금(100만원) | G33: 6000000 | I33: 6000000
C34: 에너지아주장학B | D34: 0.3 | E34: 교비지원금(80만원) | H34: 4800000 | I34: 4800000

Sheet 에너지 (hidden)
A2: 에너지
A4: 연번 | B4: 이름 | C4: 지도교수 | D4: 과정 | E4: 2020-2 기준 학기 | F4: 총점 | G4: 장학(안) | H4: 비고 | I4: 학번 | K4: 배정 비율 | L4: 장학내용 | M4: 공학
A5: 에너지 | B5: NOORFATIMA NADYA | C5: 정재성 | D5: 석사 | E5: 4 | H5: 외국인연구장학(석사 60%) | I5: 201924262 | M5: 감면금액 | N5: BK지원금 | P5: 합계 | Q5: 배정인원 | S5: 감면금액 | T5: BK지원금 | V5: 교비지원금 | X5: 공학
K6: 석사 | L6: 등록금의 40% | M6: =X7*40% -> 2463200 | P6: =SUM(M6:O6) -> 2463200 | Q6: 1 | S6: =M6*(Q6-1) -> 0 | T6: =N6*(Q6) -> 0 | U6: =O6*Q6 -> 0 | X6: 화공재료
A7: 연번 | B7: 이름 | C7: 지도교수 | D7: 과정 | E7: 2020-2 기준 학기 | F7: 총점 | G7: 장학(안) | H7: 비고 | I7: 학번 | K7: 박사 | L7: 등록금의 80% | M7: =X7*80% -> 4926400 | P7: =SUM(M7:O7) -> 4926400 | Q7: 7 | S7: =M7*(Q7-4) -> 14779200 | T7: =N7*(Q7-0) -> 0 | U7: =O7*R7 -> 0 | V7: =N7*(0) -> 0 | X7: 6158000
A8: 에너지 | B8: ISHFAQ MUHAMMAD | C8: 정재성 | D8: 박사 | E8: 2 | I8: 202025695 | L8: * 대학원 일반 장학 비율 | S8: =SUM(S6:S7) -> 14779200 | T8: =SUM(T6:T7) -> 0 | U8: =SUM(U6:U7) -> 0 | V8: =SUM(V6:V7) -> 0
A9: 에너지 | B9: WIDIPUTRA VICTOR | C9: 정재성 | D9: 박사 | E9: 8 | H9: 인도네시아/외국인A/수료 | I9: 201725198
A10: 에너지 | B10: 공준혁 | C10: 정재성 | D10: 통합(박사) | E10: 8 | H10: 수료 | I10: 201725127
A11: 에너지 | B11: 서홍석 | C11: 원지도 : 김형택 | D11: 박사 | E11: 7 | H11: 수료 | I11: 201725300
A12: 에너지 | B12: 양예진 | C12: 정재성 | D12: 통합(박사) | E12: 6 | I12: 201824496
A13: 에너지 | B13: 장동욱 | C13: 정재성 | D13: 박사 | E13: 4 | I13: 201925073
A14: 신입 | B14: 김문태

Sheet 2021-2 장학선정
A2: 연번 | B2: 계열 | C2: 세부전공 | D2: 학번 | E2: 장학 | F2: 장학명 | G2: 감면액 | H2: BK지원금 | I2: 교비
A3: 1 | B3: 공학 | C3: 에너지 | D3: 202024822 | F3: 외국인연구장학(석사) | L3: 공학 | M3: 감면금액 | N3: BK지원금 | O3: 교비지원금
A4: 2 | B4: 공학 | C4: 에너지 | D4: 201924262 | F4: 외국인연구장학(박사) | K4: 석사 | L4: 에너지특별장학S | M4: 1556250 | N4: 4200000 | O4: 0
A5: 3 | B5: 공학 | C5: 에너지 | D5: 202025797 | F5: 박사연구장학 | G5: =6225000*80% -> 4980000 | L5: 에너지우수장학A | M5: 622500 | N5: 4200000 | O5: 0
A6: 4 | B6: 공학 | C6: 에너지환경공학 | D6: 202124171 | E6: S | F6: 에너지특별장학S | G6: 1556250 | H6: 4200000 | I6: 0 | L6: 에너지연구장학B | M6: 311250 | N6: 0 | O6: 3600000
A7: 5 | B7: 공학 | C7: 에너지환경공학 | D7: 202124168 | E7: S | F7: 에너지특별장학S | G7: 1556250 | I7: 4200000 | K7: 박사 | L7: 에너지BK장학S | M7: 1556250 | N7: 7800000 | O7: 1200000
A8: 6 | B8: 공학 | C8: 에너지화학공학 | D8: 202024618 | E8: S | F8: 에너지특별장학S | G8: 1556250 | H8: 4200000 | I8: 0 | L8: 에너지BK장학A | M8: 1245000 | N8: 7800000 | O8: 0
A9: 7 | B9: 공학 | C9: 에너지화학공학 | D9: 202124167 | E9: S | F9: 에너지특별장학S | G9: 1556250 | H9: 4200000 | I9: 0 | L9: 에너지아주장학B | M9: 2801250 | N9: 0 | O9: 4800000
A10: 8 | B10: 공학 | C10: 에너지화학공학 | D10: 202124173 | E10: S | F10: 에너지특별장학S | G10: 1556250 | H10: 4200000 | I10: 0 | K10: 수료 | L10: 에너지BK장학S | N10: 6000000 | O10: 1200000
A11: 9 | B11: 공학 | C11: 에너지화학공학 | D11: 202024846 | E11: A | F11: 에너지우수장학A | G11: 622500 | H11: 4200000 | I11: 0 | L11: 에너지BK장학A | N11: 6000000
A12: 10 | B12: 공학 | C12: 에너지화학공학 | D12: 202124169 | E12: B | F12: 에너지연구장학B | G12: 311250 | H12: 0 | I12: 3600000 | L12: 에너지아주장학B | O12: 4800000
A13: 11 | B13: 공학 | C13: 에너지화학공학 | D13: 202124174 | E13: B | F13: 에너지연구장학B | G13: 311250 | H13: 0 | I13: 3600000
A14: 12 | B14: 공학 | C14: 에너지화학공학 | D14: 202124166 | E14: B | F14: 에너지연구장학B | G14: 311250 | H14: 0 | I14: 3600000 | L14: 이학 | M14: 감면금액 | N14: BK지원금 | O14: 교비지원금
A15: 13 | B15: 공학 | C15: 에너지화학공학 | D15: 202124172 | E15: B | F15: 에너지연구장학B | G15: 311250 | H15: 0 | I15: 3600000 | K15: 석사 | L15: 에너지특별장학S | M15: 1345000 | N15: 4200000 | O15: 0
A16: 14 | B16: 공학 | C16: 에너지화학공학 | D16: 202124170 | E16: B | F16: 에너지연구장학B | G16: 311250 | H16: 0 | I16: 3600000 | L16: 에너지우수장학A | M16: 538000 | N16: 4200000 | O16: 0
A17: 15 | B17: 공학 | C17: 에너지화학공학 | D17: 201925575 | E17: S | F17: 에너지BK장학S | H17: 6000000 | I17: 1200000 | L17: 에너지연구장학B | M17: 0 | N17: 0 | O17: 3600000
A18: 16 | B18: 공학 | C18: 에너지화학공학 | D18: 202025740 | E18: A | F18: 에너지BK장학A | G18: 1245000 | H18: 7800000 | I18: 0 | K18: 박사 | L18: 에너지BK장학S | M18: 1345000 | N18: 7800000 | O18: 1200000
A19: 17 | B19: 공학 | C19: 에너지화학공학 | D19: 202025741 | E19: A | F19: 에너지BK장학A | G19: 1245000 | H19: 7800000 | I19: 0 | L19: 에너지BK장학A | M19: 1076000 | N19: 7800000 | O19: 0
A20: 18 | B20: 공학 | C20: 에너지화학공학 | D20: 201724769 | E20: A | F20: 에너지BK장학A | H20: 6000000 | I20: 0 | L20: 에너지아주장학B | M20: 2421000 | N20: 0 | O20: 4800000
A21: 19 | B21: 공학 | C21: 에너지화학공학 | D21: 202125860 | E21: A | F21: 에너지BK장학A | H21: 7800000 | I21: 0 | K21: 수료 | L21: 에너지BK장학S | N21: 6000000 | O21: 1200000
A22: 20 | B22: 공학 | C22: 에너지화학공학 | D22: 201925620 | E22: B | F22: 에너지아주장학B | I22: 4800000 | L22: 에너지BK장학A | N22: 6000000
A23: 21 | B23: 공학 | C23: 에너지화학공학 | D23: 202125859 | E23: B | F23: 에너지아주장학B | H23: 0 | I23: 4800000 | L23: 에너지아주장학B | O23: 4800000
A24: 22 | B24: 공학 | C24: 에너지화학공학 | D24: 201925656 | E24: B | F24: 에너지아주장학B | H24: 0 | I24: 4800000
A25: 23 | B25: 공학 | C25: 에너지재료공학 | D25: 202024622 | E25: S | F25: 에너지특별장학S | G25: 1556250 | H25: 4200000 | I25: 0
A26: 24 | B26: 공학 | C26: 에너지재료공학 | D26: 202024619 | E26: S | F26: 에너지특별장학S | G26: 1556250 | H26: 4200000 | I26: 0
A27: 25 | B27: 공학 | C27: 에너지재료공학 | D27: 202024620 | E27: S | F27: 에너지특별장학S | G27: 1556250 | H27: 4200000 | I27: 0
A28: 26 | B28: 공학 | C28: 에너지재료공학 | D28: 202024849 | E28: S | F28: 에너지특별장학S | G28: 1556250 | H28: 4200000 | I28: 0
A29: 27 | B29: 공학 | C29: 에너지재료공학 | D29: 202024624 | E29: S | F29: 에너지특별장학S | H29: 4200000 | I29: 0
A30: 28 | B30: 공학 | C30: 에너지재료공학 | D30: 202124286 | E30: S | F30: 에너지특별장학S | G30: 1556250 | H30: 4200000 | I30: 0
A31: 29 | B31: 공학 | C31: 에너지재료공학 | D31: 202024623 | E31: A | F31: 에너지우수장학A | G31: 622500 | H31: 4200000 | I31: 0
A32: 30 | B32: 공학 | C32: 에너지재료공학 | D32: 202024805 | E32: A | F32: 에너지우수장학A | G32: 622500 | H32: 4200000 | I32: 0
A33: 31 | B33: 공학 | C33: 에너지재료공학 | D33: 202024848 | E33: A | F33: 에너지우수장학A | G33: 622500 | H33: 4200000 | I33: 0
A34: 32 | B34: 공학 | C34: 에너지재료공학 | D34: 202024621 | E34: B | F34: 에너지연구장학B | G34: 311250 | H34: 0 | I34: 3600000
A35: 33 | B35: 공학 | C35: 에너지재료공학 | D35: 202124175 | E35: B | F35: 에너지연구장학B | G35: 311250 | H35: 0 | I35: 3600000
A36: 34 | B36: 공학 | C36: 에너지재료공학 | D36: 202124285 | E36: B | F36: 에너지연구장학B | G36: 311250 | H36: 0 | I36: 3600000
A37: 35 | B37: 공학 | C37: 에너지재료공학 | D37: 202124287 | E37: B | F37: 에너지연구장학B | G37: 311250 | H37: 0 | I37: 3600000
A38: 36 | B38: 공학 | C38: 에너지재료공학 | D38: 202124288 | E38: B | F38: 에너지연구장학B | G38: 311250 | H38: 0 | I38: 3600000
A39: 37 | B39: 공학 | C39: 에너지재료공학 | D39: 202025024 | E39: B | F39: 에너지연구장학B | H39: 0 | I39: 3600000
A40: 38 | B40: 공학 | C40: 에너지재료공학 | D40: 201925020 | E40: S | F40: 에너지BK장학S | G40: 1556250 | H40: 7800000 | I40: 1200000
A41: 39 | B41: 공학 | C41: 에너지재료공학 | D41: 201825375 | E41: S | F41: 에너지BK장학S | H41: 6000000 | I41: 1200000
A42: 40 | B42: 공학 | C42: 에너지재료공학 | D42: 201924221 | E42: S | F42: 에너지BK장학S | G42: 1556250 | H42: 7800000 | I42: 1200000
A43: 41 | B43: 공학 | C43: 에너지재료공학 | D43: 201825529 | E43: A | F43: 에너지BK장학A | H43: 6000000
A44: 42 | B44: 공학 | C44: 에너지재료공학 | D44: 201624275 | E44: A | F44: 에너지BK장학A | H44: 6000000
A45: 43 | B45: 공학 | C45: 에너지재료공학 | D45: 201924264 | E45: A | F45: 에너지BK장학A | H45: 7800000 | I45: 0
A46: 44 | B46: 공학 | C46: 에너지재료공학 | D46: 201924223 | E46: A | F46: 에너지BK장학A | G46: 1245000 | H46: 7800000 | I46: 0
A47: 45 | B47: 공학 | C47: 에너지재료공학 | D47: 201924359 | E47: A | F47: 에너지BK장학A | G47: 1245000 | H47: 7800000 | I47: 0
A48: 46 | B48: 공학 | C48: 에너지재료공학 | D48: 201925549 | E48: A | F48: 에너지BK장학A | H48: 7800000 | I48: 0
A49: 47 | B49: 공학 | C49: 에너지재료공학 | D49: 202025697 | E49: B | F49: 에너지아주장학B | H49: 0 | I49: 4800000
A50: 48 | B50: 공학 | C50: 에너지재료공학 | D50: 202025698 | E50: B | F50: 에너지아주장학B | H50: 0 | I50: 4800000
A51: 49 | B51: 공학 | C51: 에너지재료공학 | D51: 202125861 | E51: B | F51: 에너지아주장학B | H51: 0 | I51: 4800000
A52: 50 | B52: 공학 | C52: 에너지재료공학 | D52: 201725129 | E52: B | F52: 에너지아주장학B | I52: 4800000
A53: 51 | B53: 공학 | C53: 에너지재료공학 | D53: 202025788 | E53: B | F53: 에너지아주장학B | H53: 0 | I53: 4800000
A54: 52 | B54: 공학 | C54: 에너지재료공학 | D54: 202125862 | E54: B | F54: 에너지아주장학B | H54: 0 | I54: 4800000
A55: 53 | B55: 이학 | C55: 에너지화학 | D55: 202024615 | E55: S | F55: 에너지특별장학S | G55: 1345000 | H55: 4200000 | I55: 0
A56: 54 | B56: 이학 | C56: 에너지화학 | D56: 202024803 | E56: S | F56: 에너지특별장학S | G56: 1345000 | H56: 4200000 | I56: 0
A57: 55 | B57: 이학 | C57: 에너지화학 | D57: 202024613 | E57: S | F57: 에너지특별장학S | G57: 1345000 | H57: 4200000 | I57: 0
A58: 56 | B58: 이학 | C58: 에너지화학 | D58: 202124162 | E58: S | F58: 에너지특별장학S | G58: 1345000 | H58: 4200000 | I58: 0
A59: 57 | B59: 이학 | C59: 에너지화학 | D59: 202024609 | E59: S | F59: 에너지특별장학S | G59: 1345000 | H59: 4200000 | I59: 0
A60: 58 | B60: 이학 | C60: 에너지화학 | D60: 202024804 | E60: A | F60: 에너지우수장학A | G60: 538000 | H60: 4200000 | I60: 0
A61: 59 | B61: 이학 | C61: 에너지화학 | D61: 202124163 | E61: B | F61: 에너지연구장학B | G61: 0 | H61: 0 | I61: 3600000
A62: 60 | B62: 이학 | C62: 에너지화학 | D62: 202124164 | E62: B | F62: 에너지연구장학B | G62: 0 | H62: 0 | I62: 3600000
A63: 61 | B63: 이학 | C63: 에너지화학 | D63: 202124165 | E63: B | F63: 에너지연구장학B | G63: 0 | H63: 0 | I63: 3600000
A64: 62 | B64: 이학 | C64: 에너지화학 | D64: 202024607 | E64: B | F64: 에너지연구장학B | G64: 0 | H64: 0 | I64: 3600000
A65: 63 | B65: 이학 | C65: 에너지화학 | D65: 202124161 | E65: B | F65: 에너지연구장학B | G65: 0 | H65: 0 | I65: 3600000
A66: 64 | B66: 이학 | C66: 에너지화학 | D66: 202024610 | E66: B | F66: 에너지연구장학B | G66: 0 | H66: 0 | I66: 3600000
A67: 65 | B67: 이학 | C67: 에너지화학 | D67: 202024614 | E67: B | F67: 에너지연구장학B | G67: 0 | H67: 0 | I67: 3600000
A68: 66 | B68: 이학 | C68: 에너지화학 | D68: 202024612 | E68: B | F68: 에너지연구장학B | G68: 0 | H68: 0 | I68: 3600000
A69: 67 | B69: 이학 | C69: 에너지화학 | D69: 201825370 | E69: S | F69: 에너지BK장학S | H69: 6000000 | I69: 1200000
A70: 68 | B70: 이학 | C70: 에너지화학 | D70: 201824478 | E70: S | F70: 에너지BK장학S | H70: 6000000 | I70: 1200000
A71: 69 | B71: 이학 | C71: 에너지화학 | D71: 201824668 | E71: A | F71: 에너지BK장학A | G71: 1076000 | H71: 7800000 | I71: 0
A72: 70 | B72: 이학 | C72: 에너지화학 | D72: 201924208 | E72: A | F72: 에너지BK장학A | G72: 1076000 | H72: 7800000 | I72: 0
A73: 71 | B73: 이학 | C73: 에너지화학 | D73: 201624269 | E73: A | F73: 에너지BK장학A | H73: 6000000
A74: 72 | B74: 이학 | C74: 에너지화학 | D74: 201924355 | E74: A | F74: 에너지BK장학A | G74: 1076000 | H74: 7800000 | I74: 0
A75: 73 | B75: 이학 | C75: 에너지화학 | D75: 201924210 | E75: B | F75: 에너지아주장학B | G75: 2421000 | H75: 0 | I75: 4800000
A76: 74 | B76: 이학 | C76: 에너지화학 | D76: 201825256 | E76: B | F76: 에너지아주장학B | I76: 4800000
A77: 75 | B77: 이학 | C77: 에너지화학 | D77: 201925619 | E77: B | F77: 에너지아주장학B | I77: 4800000
A78: 76 | B78: 이학 | C78: 에너지화학 | D78: 201924212 | E78: B | F78: 에너지아주장학B | G78: 2421000 | H78: 0 | I78: 4800000
A79: 77 | B79: 이학 | C79: 에너지화학 | D79: 201925558 | E79: B | F79: 에너지아주장학B | I79: 4800000
A80: 78 | B80: 이학 | C80: 에너지물리 | D80: 202024605 | E80: S | F80: 에너지특별장학S | G80: 1345000 | H80: 4200000 | I80: 0
A81: 79 | B81: 이학 | C81: 에너지물리 | D81: 202024604 | E81: S | F81: 에너지특별장학S | G81: 1345000 | H81: 4200000 | I81: 0
A82: 80 | B82: 이학 | C82: 에너지물리 | D82: 202024801 | E82: S | F82: 에너지특별장학S | G82: 1345000 | H82: 4200000 | I82: 0
A83: 81 | B83: 이학 | C83: 에너지물리 | D83: 202024599 | E83: S | F83: 에너지특별장학S | G83: 1345000 | H83: 4200000 | I83: 0
A84: 82 | B84: 이학 | C84: 에너지물리 | D84: 202024601 | E84: S | F84: 에너지특별장학S | G84: 1345000 | H84: 4200000 | I84: 0
A85: 83 | B85: 이학 | C85: 에너지물리 | D85: 202024603 | E85: S | F85: 에너지특별장학S | G85: 1345000 | H85: 4200000 | I85: 0
A86: 84 | B86: 이학 | C86: 에너지물리 | D86: 202124156 | E86: A | F86: 에너지우수장학A | G86: 538000 | H86: 4200000 | I86: 0
A87: 85 | B87: 이학 | C87: 에너지물리 | D87: 202024606 | E87: A | F87: 에너지우수장학A | G87: 538000 | H87: 4200000 | I87: 0
A88: 86 | B88: 이학 | C88: 에너지물리 | D88: 202024800 | E88: A | F88: 에너지우수장학A | G88: 538000 | H88: 4200000 | I88: 0
A89: 87 | B89: 이학 | C89: 에너지물리 | D89: 202124159 | E89: A | F89: 에너지우수장학A | G89: 538000 | H89: 4200000 | I89: 0
A90: 88 | B90: 이학 | C90: 에너지물리 | D90: 202124154 | E90: A | F90: 에너지우수장학A | H90: 4200000 | I90: 0
A91: 89 | B91: 이학 | C91: 에너지물리 | D91: 202024602 | E91: A | F91: 에너지우수장학A | G91: 538000 | H91: 4200000 | I91: 0
A92: 90 | B92: 이학 | C92: 에너지물리 | D92: 202024799 | E92: A | F92: 에너지우수장학A | G92: 538000 | H92: 4200000 | I92: 0
A93: 91 | B93: 이학 | C93: 에너지물리 | D93: 202124155 | E93: B | F93: 에너지연구장학B | G93: 0 | H93: 0 | I93: 3600000
A94: 92 | B94: 이학 | C94: 에너지물리 | D94: 202024797 | E94: B | F94: 에너지연구장학B | G94: 0 | H94: 0 | I94: 3600000
A95: 93 | B95: 이학 | C95: 에너지물리 | D95: 202124158 | E95: B | F95: 에너지연구장학B | G95: 0 | H95: 0 | I95: 3600000
A96: 94 | B96: 이학 | C96: 에너지물리 | D96: 202024845 | E96: B | F96: 에너지연구장학B | G96: 0 | H96: 0 | I96: 3600000
A97: 95 | B97: 이학 | C97: 에너지물리 | D97: 202124157 | E97: B | F97: 에너지연구장학B | G97: 0 | H97: 0 | I97: 3600000
A98: 96 | B98: 이학 | C98: 에너지물리 | D98: 202124160 | E98: B | F98: 에너지연구장학B | G98: 0 | H98: 0 | I98: 3600000
A99: 97 | B99: 이학 | C99: 에너지물리 | D99: 201925071 | E99: S | F99: 에너지BK장학S | H99: 6000000 | I99: 1200000
A100: 98 | B100: 이학 | C100: 에너지물리 | D100: 201825255 | E100: S | F100: 에너지BK장학S | H100: 6000000 | I100: 1200000
A101: 99 | B101: 이학 | C101: 에너지물리 | D101: 201725126 | E101: S | F101: 에너지BK장학S | H101: 6000000 | I101: 1200000
A102: 100 | B102: 이학 | C102: 에너지물리 | D102: 201925574 | E102: A | F102: 에너지BK장학A | H102: 6000000
A103: 101 | B103: 이학 | C103: 에너지물리 | D103: 202025693 | E103: A | F103: 에너지BK장학A | H103: 7800000 | I103: 0
A104: 102 | B104: 이학 | C104: 에너지물리 | D104: 201924351 | E104: A | F104: 에너지BK장학A | G104: 1076000 | H104: 7800000 | I104: 0
A105: 103 | B105: 이학 | C105: 에너지물리 | D105: 201924352 | E105: A | F105: 에너지BK장학A | G105: 1076000 | H105: 7800000 | I105: 0
A106: 104 | B106: 이학 | C106: 에너지물리 | D106: 201824470 | E106: B | F106: 에너지아주장학B | I106: 4800000
A107: 105 | B107: 이학 | C107: 에너지물리 | D107: 202025737 | E107: B | F107: 에너지아주장학B | G107: 2421000 | H107: 0 | I107: 4800000
A108: 106 | B108: 이학 | C108: 에너지물리 | D108: 202025786 | E108: B | F108: 에너지아주장학B | H108: 0 | I108: 4800000
A109: 107 | B109: 이학 | C109: 에너지물리 | D109: 202025738 | E109: B | F109: 에너지아주장학B | G109: 2421000 | H109: 0 | I109: 4800000
A110: 108 | B110: 이학 | C110: 에너지물리 | D110: 202125858 | E110: B | F110: 에너지아주장학B | H110: 0 | I110: 4800000
